fUST/lending_fUST_20250718
["ID","MTS","AMOUNT","RATE_DAILY","PERIOD"]
[372987850,1752834633949,-230.89969799,0.00020217,2]
[372987851,1752834633959,-160.0,0.00020217,2]
[372987852,1752834633968,-160.0,0.00020217,2]
[372987853,1752834633978,-214.4881157,0.00020217,2]
[372987854,1752834633987,-329.88506384,0.00020217,2]
[372987855,1752834633997,-49149.1289467,0.00020218,2]
[372987856,1752834634152,-460.0,0.00020221,2]
[372987857,1752834634164,-460.0,0.00020221,2]
[372987858,1752834634174,-460.0,0.00020221,2]
[372987859,1752834634184,-460.0,0.00020221,2]
[372987860,1752834634195,-460.0,0.00020221,2]
[372987861,1752834634205,-460.0,0.00020221,2]
[372987862,1752834634215,-1030.82,0.00020221,2]
[372987863,1752834634225,-460.0,0.00020221,2]
[372987864,1752834634235,-460.0,0.00020222,2]
[372987865,1752834634246,-460.0,0.00020222,2]
[372987866,1752834634256,-283.29263174,0.00020225,2]
[372987867,1752834634265,-460.0,0.00020225,2]
[372987868,1752834634275,-460.0,0.00020225,2]
[372987869,1752834634285,-460.0,0.00020225,2]
[372987870,1752834634295,-460.0,0.00020225,2]
[372987871,1752834634305,-460.0,0.00020225,2]
[372987872,1752834634316,-460.0,0.00020225,2]
[372987873,1752834634326,-460.0,0.00020225,2]
[372987874,1752834634335,-460.0,0.00020225,2]
[372987875,1752834634344,-548.85,0.00020225,2]
[372987876,1752834634354,-460.0,0.00020225,2]
[372987877,1752834634364,-460.0,0.00020225,2]
[372987878,1752834634374,-460.0,0.00020225,2]
[372987879,1752834634383,-460.0,0.00020225,2]
[372987880,1752834634392,-460.0,0.00020225,2]
[372987881,1752834634402,-460.0,0.00020225,2]
[372987882,1752834634411,-460.0,0.00020227,2]
[372987883,1752834634421,-460.0,0.00020227,2]
[372987884,1752834634430,-460.0,0.00020227,2]
[372987885,1752834634440,-460.0,0.00020227,2]
[372987886,1752834634449,-460.0,0.00020227,2]
[372987887,1752834634459,-460.0,0.00020227,2]
[372987888,1752834634469,-460.0,0.00020227,2]
[372987889,1752834634478,-460.0,0.00020227,2]
[372987890,1752834634487,-460.0,0.00020227,2]
[372987891,1752834634497,-460.0,0.00020227,2]
[372987892,1752834634506,-460.0,0.00020227,2]
[372987893,1752834634515,-460.0,0.00020227,2]
[372987894,1752834634525,-460.0,0.00020227,2]
[372987895,1752834634535,-460.0,0.00020227,2]
[372987896,1752834634544,-460.0,0.00020227,2]
[372987897,1752834634553,-460.0,0.00020227,2]
[372987898,1752834634567,-460.0,0.00020227,2]
[372987899,1752834634576,-460.0,0.00020227,2]
[372987900,1752834634586,-460.0,0.0002023,2]
[372987901,1752834634595,-460.0,0.0002023,2]
[372987902,1752834634605,-469.92225315,0.0002023,2]
[372987903,1752834634615,-540.52492912,0.0002023,2]
[372987904,1752834634624,-553.48507504,0.0002023,2]
[372987905,1752834634633,-460.0,0.0002023,2]
[372987906,1752834634644,-460.0,0.0002023,2]
[372987907,1752834634654,-401.49,0.0002023,2]
[372987908,1752834634664,-264.42099857,0.00020238,2]
[372987909,1752834634673,-460.0,0.00020238,2]
[372987910,1752834634683,-460.0,0.00020238,2]
[372987911,1752834634692,-460.0,0.00020238,2]
[372987912,1752834634701,-460.0,0.00020238,2]
[372987913,1752834634711,-460.0,0.00020245,2]
[372987914,1752834634720,-460.0,0.00020245,2]
[372987915,1752834634730,-313.88966242,0.00020245,2]
[372987916,1752834634739,-460.0,0.00020245,2]
[372987917,1752834634748,-460.0,0.00020245,2]
[372987918,1752834634758,-682.99,0.00020245,2]
[372987919,1752834634768,-460.0,0.00020245,2]
[372987920,1752834634779,-460.0,0.00020245,2]
[372987921,1752834634791,-511.89,0.00020245,2]
[372987922,1752834634801,-460.0,0.00020245,2]
[372987923,1752834634811,-460.0,0.00020245,2]
[372987924,1752834634820,-460.0,0.00020245,2]
[372987925,1752834634830,-460.0,0.00020245,2]
[372987926,1752834634839,-228.11352469,0.00020273,2]
[372987927,1752834634849,-204.34290633,0.00020273,2]
[372987928,1752834634859,-500.0,0.00020273,2]
[372987929,1752834634868,-659.20022017,0.00020314,3]
[372987930,1752834634879,-460.0,0.00020495,2]
[372987931,1752834634888,-460.0,0.00020495,2]
[372987932,1752834634898,-460.0,0.00020495,2]
[372987933,1752834634908,-460.0,0.00020495,2]
[372987934,1752834634917,-460.0,0.00020495,2]
[372987935,1752834634927,-460.0,0.00020495,2]
[372987936,1752834634936,-1030.82,0.00020495,2]
[372987937,1752834634946,-234.11705172,0.00020495,2]
[372987938,1752834634955,-460.0,0.00020499,2]
[372987939,1752834634965,-460.0,0.00020499,2]
[372987940,1752834634974,-460.0,0.00020499,2]
[372987941,1752834634983,-460.0,0.00020499,2]
[372987942,1752834634993,-460.0,0.00020499,2]
[372987943,1752834635003,-460.0,0.00020499,2]
[372987944,1752834635012,-460.0,0.00020499,2]
[372987945,1752834635022,-548.85,0.00020499,2]
[372987946,1752834635032,-460.0,0.00020499,2]
[372987947,1752834635042,-460.0,0.00020499,2]
[372987948,1752834635052,-460.0,0.00020499,2]
[372987949,1752834635062,-460.0,0.00020499,2]
[372987950,1752834635071,-460.0,0.00020499,2]
[372987951,1752834635081,-460.0,0.00020499,2]
[372987952,1752834635091,-460.0,0.00020501,2]
[372987953,1752834635100,-460.0,0.00020501,2]
[372987954,1752834635110,-460.0,0.00020501,2]
[372987955,1752834635119,-460.0,0.00020501,2]
[372987956,1752834635129,-460.0,0.00020501,2]
[372987957,1752834635138,-460.0,0.00020501,2]
[372987958,1752834635148,-460.0,0.00020501,2]
[372987959,1752834635157,-460.0,0.00020501,2]
[372987960,1752834635167,-460.0,0.00020501,2]
[372987961,1752834635176,-460.0,0.00020501,2]
[372987962,1752834635186,-460.0,0.00020501,2]
[372987963,1752834635195,-388.33954498,0.00020501,2]
[372987964,1752834635205,-460.0,0.00020501,2]
[372987965,1752834635215,-460.0,0.00020501,2]
[372987966,1752834635224,-460.0,0.00020501,2]
[372987967,1752834635234,-460.0,0.00020504,2]
[372987968,1752834635243,-460.0,0.00020512,2]
[372987969,1752834635252,-460.0,0.00020519,2]
[372987970,1752834635261,-682.99,0.00020519,2]
[372987971,1752834635271,-460.0,0.00020519,2]
[372987972,1752834635280,-460.0,0.00020519,2]
[372987973,1752834635290,-460.0,0.00020519,2]
[372987974,1752834635300,-460.0,0.00020519,2]
[372987975,1752834635310,-460.0,0.00020519,2]
[372987976,1752834635319,-460.0,0.00020519,2]
[372987977,1752834635329,-659.20022017,0.00020521,3]
[372987978,1752834635338,-460.0,0.0002054,2]
[372987979,1752834635347,-466.02746435,0.0002054,2]
[372987980,1752834635357,-460.0,0.0002054,2]
[372987981,1752834635367,-986.33,0.0002054,2]
[372987982,1752834635376,-460.0,0.0002054,2]
[372987983,1752834635385,-6747.56264506,0.00020669,2]
[372987984,1752834635395,-659.20022017,0.00020728,3]
[372987985,1752834635405,-223.14,0.00020729,3]
[372987986,1752834635415,-669.43,0.00020729,3]
[372987987,1752834635424,-86416.61934777,0.00020739,2]
[372987988,1752834635437,-2051.3832296,0.00020739,2]
[372987989,1752834635493,-4776.80203435,0.00020739,2]
[372987990,1752834635508,-1777.76819494,0.00020739,2]
[372987991,1752834635520,-790.05053952,0.00020739,2]
[372987992,1752834635531,-7543.49906184,0.00020739,2]
[372988012,1752834637955,-160.0,0.00020216,2]
[372988014,1752834637964,-525.75194068,0.00020216,2]
[372988016,1752834637974,-160.0,0.00020216,2]
[372988018,1752834637984,-417.74056244,0.00020739,2]
[372988021,1752834637996,-1149.36,0.00020739,2]
[372988023,1752834638008,-4879.74501585,0.00020739,2]
[372988025,1752834638019,-47637.65804536,0.00020739,2]
[372988220,1752834640007,-460.0,0.00020221,2]
[372988222,1752834640017,-6860.692546,0.00020739,2]
[372988225,1752834640029,-1238.74465607,0.00020739,2]
[372988227,1752834640042,-30170.91481419,0.00020739,2]
[372988229,1752834640053,-6823.55629151,0.00020739,2]
[372988232,1752834640069,-234073.94033137,0.00020739,2]
[372988234,1752834640078,-460.0,0.00020769,2]
[372988236,1752834640088,-460.0,0.00020769,2]
[372988238,1752834640097,-460.0,0.00020769,2]
[372988240,1752834640107,-460.0,0.00020769,2]
[372988242,1752834640116,-1030.82,0.00020769,2]
[372988244,1752834640125,-460.0,0.00020773,2]
[372988246,1752834640135,-460.0,0.00020773,2]
[372988248,1752834640144,-460.0,0.00020773,2]
[372988250,1752834640154,-460.0,0.00020773,2]
[372988252,1752834640163,-460.0,0.00020773,2]
[372988254,1752834640173,-460.0,0.00020773,2]
[372988256,1752834640182,-548.85,0.00020773,2]
[372988258,1752834640192,-460.0,0.00020773,2]
[372988259,1752834640202,-460.0,0.00020773,2]
[372988262,1752834640211,-460.0,0.00020773,2]
[372988264,1752834640221,-460.0,0.00020773,2]
[372988265,1752834640230,-460.0,0.00020773,2]
[372988266,1752834640240,-460.0,0.00020773,2]
[372988267,1752834640250,-199.74297878,0.00020774,2]
[372988268,1752834640260,-524.82225051,0.00020774,2]
[372988269,1752834640269,-524.82225051,0.00020774,2]
[372988270,1752834640279,-524.82225051,0.00020774,2]
[372988271,1752834640288,-524.82225051,0.00020774,2]
[372988272,1752834640298,-524.82225051,0.00020774,2]
[372988273,1752834640307,-524.82225051,0.00020774,2]
[372988274,1752834640317,-524.82225051,0.00020774,2]
[372988275,1752834640329,-524.82225051,0.00020774,2]
[372988276,1752834640339,-524.82225051,0.00020774,2]
[372988277,1752834640348,-524.82225051,0.00020774,2]
[372988278,1752834640357,-524.82225051,0.00020774,2]
[372988279,1752834640367,-524.82225051,0.00020774,2]
[372988280,1752834640376,-524.82225051,0.00020774,2]
[372988281,1752834640386,-163.54,0.00020775,2]
[372988282,1752834640396,-460.0,0.00020775,2]
[372988283,1752834640406,-460.0,0.00020775,2]
[372988284,1752834640415,-460.0,0.00020775,2]
[372988285,1752834640425,-460.0,0.00020775,2]
[372988286,1752834640435,-460.0,0.00020775,2]
[372988287,1752834640445,-460.0,0.00020775,2]
[372988288,1752834640454,-460.0,0.00020775,2]
[372988289,1752834640464,-460.0,0.00020775,2]
[372988290,1752834640474,-460.0,0.00020775,2]
[372988291,1752834640486,-460.0,0.00020775,2]
[372988292,1752834640496,-460.0,0.00020778,2]
[372988293,1752834640505,-682.99,0.00020793,2]
[372988294,1752834640515,-460.0,0.00020793,2]
[372988295,1752834640525,-460.0,0.00020793,2]
[372988296,1752834640536,-460.0,0.00020793,2]
[372988297,1752834640548,-460.0,0.00020793,2]
[372988298,1752834640558,-460.0,0.00020793,2]
[372988299,1752834640571,-460.0,0.00020814,2]
[372988300,1752834640581,-986.33,0.00020814,2]
[372988301,1752834640591,-460.0,0.00020814,2]
[372988302,1752834640602,-1000.0,0.00020821,2]
[372988303,1752834640612,-160.0,0.00020844,2]
[372988304,1752834640621,-403.97698889,0.0002087,2]
[372988305,1752834640631,-178.376,0.0002089,2]
[372988306,1752834640641,-415.852,0.0002089,2]
[372988307,1752834640651,-659.20022017,0.00020934,4]
[372988308,1752834640661,-5000.0,0.00020979,2]
[372988309,1752834640670,-268.78754249,0.00021043,2]
[372988310,1752834640680,-460.0,0.00021043,2]
[372988311,1752834640690,-460.0,0.00021043,2]
[372988312,1752834640700,-1030.82,0.00021043,2]
[372988313,1752834640710,-460.0,0.00021047,2]
[372988314,1752834640720,-460.0,0.00021047,2]
[372988315,1752834640730,-460.0,0.00021047,2]
[372988316,1752834640739,-548.85,0.00021047,2]
[372988317,1752834640749,-460.0,0.00021047,2]
[372988318,1752834640758,-460.0,0.00021047,2]
[372988319,1752834640768,-176.43,0.00021047,2]
[372988320,1752834640778,-460.0,0.00021049,2]
[372988321,1752834640787,-460.0,0.00021049,2]
[372988322,1752834640797,-460.0,0.00021049,2]
[372988323,1752834640807,-460.0,0.00021049,2]
[372988324,1752834640817,-460.0,0.00021049,2]
[372988325,1752834640826,-460.0,0.00021049,2]
[372988326,1752834640837,-460.0,0.00021049,2]
[372988327,1752834640846,-460.0,0.00021049,2]
[372988328,1752834640855,-460.0,0.00021052,2]
[372988329,1752834640865,-682.99,0.00021067,2]
[372988330,1752834640874,-529.71,0.00021067,2]
[372988331,1752834640884,-460.0,0.00021067,2]
[372988332,1752834640894,-460.0,0.00021067,2]
[372988333,1752834640904,-460.0,0.00021067,2]
[372988334,1752834640913,-256.06,0.00021088,2]
[372988335,1752834640923,-986.33,0.00021088,2]
[372988337,1752834640932,-460.0,0.00021088,2]
[372988338,1752834640941,-659.20022017,0.00021141,4]
[372988340,1752834640951,-460.0,0.00021317,2]
[372988341,1752834640960,-460.0,0.00021317,2]
[372988343,1752834640970,-1030.82,0.00021317,2]
[372988346,1752834640980,-460.0,0.00021321,2]
[372988348,1752834640989,-460.0,0.00021321,2]
[372988349,1752834640998,-460.0,0.00021321,2]
[372988352,1752834641008,-548.85,0.00021321,2]
[372988354,1752834641018,-445.4,0.00021321,2]
[372988356,1752834641027,-460.0,0.00021321,2]
[372988357,1752834641037,-460.0,0.00021323,2]
[372988359,1752834641048,-208.2,0.00021326,2]
[372988361,1752834641057,-682.99,0.00021341,2]
[372988363,1752834641067,-401.34964869,0.00021341,2]
[372988365,1752834641076,-184.49,0.00021341,2]
[372988367,1752834641086,-460.0,0.00021341,2]
[372988369,1752834641095,-659.20022017,0.00021348,5]
[372988371,1752834641105,-986.33,0.00021362,2]
[372988373,1752834641114,-460.0,0.00021362,2]
[372988375,1752834641124,-1600.20592339,0.00021368,2]
[372988376,1752834641133,-260.0,0.00021392,2]
[372988377,1752834641143,-460.0,0.00021429,2]
[372988378,1752834641153,-460.0,0.00021429,2]
[372988379,1752834641163,-460.0,0.00021429,2]
[372988380,1752834641172,-460.0,0.00021429,2]
[372988381,1752834641182,-480.30618363,0.00021429,2]
[372988382,1752834641191,-460.0,0.00021429,2]
[372988383,1752834641201,-228.08096883,0.00021429,2]
[372988384,1752834641210,-659.20022017,0.00021555,5]
[372988385,1752834641220,-575.84,0.00021578,3]
[372988386,1752834641230,-460.0,0.00021591,2]
[372988387,1752834641239,-460.0,0.00021591,2]
[372988388,1752834641249,-1030.82,0.00021591,2]
[372988389,1752834641259,-460.0,0.00021595,2]
[372988390,1752834641268,-460.0,0.00021595,2]
[372988391,1752834641278,-460.0,0.00021595,2]
[372988392,1752834641288,-548.85,0.00021595,2]
[372988393,1752834641300,-460.0,0.00021595,2]
[372988394,1752834641310,-460.0,0.00021597,2]
[372988395,1752834641321,-682.99,0.00021615,2]
[372988396,1752834641330,-460.0,0.00021615,2]
[372988397,1752834641340,-403.97698889,0.00021621,2]
[372988398,1752834641349,-6173.88104702,0.00021631,2]
[372988399,1752834641359,-986.33,0.00021636,2]
[372988400,1752834641368,-460.0,0.00021636,2]
[372988402,1752834641377,-500.0,0.00021653,2]
[372988403,1752834641388,-6173.88104702,0.00021713,2]
[372988404,1752834641398,-659.20022017,0.00021762,5]
[372988405,1752834641407,-410.0353446,0.00021865,2]
[372988406,1752834641417,-460.0,0.00021865,2]
[372988407,1752834641426,-1030.82,0.00021865,2]
[372988408,1752834641436,-460.0,0.00021869,2]
[372988409,1752834641446,-460.0,0.00021869,2]
[372988410,1752834641455,-460.0,0.00021869,2]
[372988411,1752834641464,-548.85,0.00021869,2]
[372988412,1752834641474,-460.0,0.00021869,2]
[372988413,1752834641483,-460.0,0.00021871,2]
[372988414,1752834641493,-682.99,0.00021889,2]
[372988415,1752834641502,-460.0,0.00021889,2]
[372988416,1752834641512,-986.33,0.0002191,2]
[372988417,1752834641522,-460.0,0.0002191,2]
[372988418,1752834641531,-360.0,0.0002194,2]
[372988419,1752834641541,-659.20022017,0.00021969,6]
[372988420,1752834641550,-1838.08,0.00022,7]
[372988421,1752834641561,-42916.39,0.00022,2]
[372988422,1752834641574,-3967.55,0.00022,7]
[372988423,1752834641584,-6173.88104702,0.00022023,2]
[372988424,1752834641593,-446.28,0.00022099,3]
[372988425,1752834641604,-460.0,0.00022139,2]
[372988426,1752834641614,-1030.82,0.00022139,2]
[372988427,1752834641624,-460.0,0.00022143,2]
[372988428,1752834641634,-460.0,0.00022143,2]
[372988429,1752834641644,-460.0,0.00022143,2]
[372988430,1752834641653,-548.85,0.00022143,2]
[372988431,1752834641662,-460.0,0.00022143,2]
[372988432,1752834641672,-460.0,0.00022145,2]
[372988433,1752834641682,-682.99,0.00022163,2]
[372988434,1752834641692,-460.0,0.00022163,2]
[372988435,1752834641701,-659.20022017,0.00022176,6]
[372988436,1752834641711,-986.33,0.00022184,2]
[372988437,1752834641720,-460.0,0.00022184,2]
[372988438,1752834641731,-403.97698889,0.00022373,2]
[372988439,1752834641740,-659.20022017,0.00022383,7]
[372988440,1752834641749,-460.0,0.00022413,2]
[372988441,1752834641762,-1030.82,0.00022413,2]
[372988442,1752834641771,-460.0,0.00022416,2]
[372988443,1752834641781,-460.0,0.00022416,2]
[372988444,1752834641790,-460.0,0.00022416,2]
[372988445,1752834641799,-548.85,0.00022416,2]
[372988446,1752834641808,-460.0,0.00022416,2]
[372988447,1752834641817,-460.0,0.00022419,2]
[372988448,1752834641826,-682.99,0.00022437,2]
[372988449,1752834641835,-460.0,0.00022437,2]
[372988450,1752834641844,-6173.88104702,0.00022444,2]
[372988451,1752834641853,-986.33,0.00022458,2]
[372988452,1752834641863,-460.0,0.00022458,2]
[372988453,1752834641872,-220.0,0.00022488,2]
[372988454,1752834641882,-3797.21989088,0.0002249,7]
[372988455,1752834641891,-151.0,0.0002253,7]
[372988456,1752834641900,-151.0,0.0002253,7]
[372988457,1752834641909,-6173.88104702,0.00022569,2]
[372988458,1752834641919,-659.20022017,0.0002259,7]
[372988459,1752834641928,-460.0,0.00022687,2]
[372988460,1752834641937,-1030.82,0.00022687,2]
[372988461,1752834641946,-460.0,0.0002269,2]
[372988462,1752834641955,-460.0,0.0002269,2]
[372988463,1752834641964,-460.0,0.0002269,2]
[372988464,1752834641973,-548.85,0.0002269,2]
[372988465,1752834641982,-460.0,0.0002269,2]
[372988466,1752834641991,-460.0,0.00022693,2]
[372988467,1752834642000,-150.92781,0.00022711,2]
[372988468,1752834642010,-682.99,0.00022711,2]
[372988469,1752834642019,-460.0,0.00022711,2]
[372988470,1752834642027,-986.33,0.00022732,2]
[372988471,1752834642037,-460.0,0.00022732,2]
[372988472,1752834642046,-6747.56264504,0.00022735,2]
[372988473,1752834642056,-1926.48,0.00022739,6]
[372988474,1752834642064,-500.0,0.00022749,2]
[372988475,1752834642073,-315.0,0.00022767,8]
[372988476,1752834642082,-1039.57238948,0.0002277,2]
[372988477,1752834642091,-659.20022017,0.00022797,7]
[372988478,1752834642100,-1926.48,0.00022839,7]
[372988479,1752834642109,-1926.48,0.00022939,2]
[372988480,1752834642118,-460.0,0.00022961,2]
[372988481,1752834642127,-1030.82,0.00022961,2]
[372988482,1752834642136,-460.0,0.00022964,2]
[372988483,1752834642145,-210.77213315,0.00022964,2]
[372988484,1752834642154,-460.0,0.00022964,2]
[372988485,1752834642163,-548.85,0.00022964,2]
[372988486,1752834642171,-460.0,0.00022964,2]
[372988487,1752834642285,-460.0,0.00022967,2]
[372988488,1752834642296,-2007.36919205,0.0002298,2]
[372988489,1752834642306,-6173.88104702,0.00022983,2]
[372988490,1752834642316,-682.99,0.00022985,2]
[372988491,1752834642327,-460.0,0.00022985,2]
[372988492,1752834642337,-40233.64322167,0.00023,10]
[372988493,1752834642348,-38322.07646454,0.00023,2]
[372988494,1752834642358,-659.20022017,0.00023003,8]
[372988495,1752834642368,-986.33,0.00023006,2]
[372988496,1752834642378,-460.0,0.00023006,2]
[372988497,1752834642389,-1926.48,0.00023039,7]
[372988498,1752834642399,-3967.55,0.000231,7]
[372988499,1752834642408,-403.97698889,0.00023125,2]
[372988500,1752834642418,-1926.48,0.00023139,2]
[372988501,1752834642427,-42916.39,0.000232,2]
[372988502,1752834642438,-659.20022017,0.0002321,8]
[372988503,1752834642447,-460.0,0.00023235,2]
[372988504,1752834642458,-1030.82,0.00023235,2]
[372988505,1752834642469,-460.0,0.00023238,2]
[372988506,1752834642480,-460.0,0.00023238,2]
[372988507,1752834642492,-548.85,0.00023238,2]
[372988508,1752834642501,-460.0,0.00023238,2]
[372988509,1752834642511,-1926.48,0.00023239,5]
[372988510,1752834642520,-172.68,0.00023241,2]
[372988511,1752834642530,-682.99,0.00023259,2]
[372988512,1752834642540,-460.0,0.00023259,2]
[372988513,1752834642551,-986.33,0.0002328,2]
[372988514,1752834642566,-475.02748207,0.0002328,2]
[372988515,1752834642576,-6173.88104702,0.00023283,2]
[372988516,1752834642586,-1926.48,0.00023339,3]
[372988517,1752834642595,-659.20022017,0.00023417,9]
[372988518,1752834642606,-6173.88104702,0.00023436,2]
[372988519,1752834642616,-1926.48,0.00023439,3]
[372988520,1752834642626,-1838.08,0.000235,7]
[372988521,1752834642638,-160.0,0.000235,7]
[372988522,1752834642648,-460.0,0.00023509,2]
[372988523,1752834642659,-1030.82,0.00023509,2]
[372988524,1752834642668,-460.0,0.00023512,2]
[372988526,1752834642678,-460.0,0.00023512,2]
[372988528,1752834642688,-548.85,0.00023512,2]
[372988530,1752834642698,-460.0,0.00023512,2]
[372988532,1752834642707,-682.99,0.00023533,2]
[372988534,1752834642716,-460.0,0.00023533,2]
[372988536,1752834642725,-1926.48,0.00023539,2]
[372988537,1752834642734,-986.33,0.00023554,2]
[372988539,1752834642744,-200.0,0.00023561,2]
[372988541,1752834642753,-200.0,0.00023561,2]
[372988543,1752834642763,-200.0,0.00023561,2]
[372988545,1752834642773,-200.0,0.00023561,2]
[372988547,1752834642782,-200.0,0.00023561,2]
[372988549,1752834642791,-200.0,0.00023561,2]
[372988550,1752834642801,-200.0,0.00023561,2]
[372988552,1752834642811,-200.0,0.00023561,2]
[372988554,1752834642820,-200.0,0.00023561,2]
[372988556,1752834642830,-200.0,0.00023561,2]
[372988558,1752834642839,-200.0,0.00023561,2]
[372988560,1752834642849,-200.0,0.00023561,2]
[372988561,1752834642858,-200.0,0.00023561,2]
[372988563,1752834642868,-659.20022017,0.00023624,9]
[372988565,1752834642878,-150.0,0.00023627,2]
[372988567,1752834642887,-1926.48,0.00023639,7]
[372988569,1752834642896,-230.0,0.00023644,2]
[372988571,1752834642904,-819.39482928,0.000237,30]
[372988572,1752834642913,-150.92781,0.00023701,2]
[372988574,1752834642921,-500.0,0.00023733,2]
[372988576,1752834642930,-1926.48,0.00023739,3]
[372988578,1752834642939,-991.583453,0.00023753,3]
[372988580,1752834642947,-6173.88104702,0.00023764,2]
[372988581,1752834642955,-500.96833344,0.00023773,2]
[372988582,1752834642965,-460.0,0.00023783,2]
[372988583,1752834642975,-1030.82,0.00023783,2]
[372988585,1752834642984,-460.0,0.00023786,2]
[372988587,1752834642993,-460.0,0.00023786,2]
[372988589,1752834643003,-548.85,0.00023786,2]
[372988591,1752834643013,-460.0,0.00023786,2]
[372988592,1752834643022,-627.588781,0.00023792,7]
[372988594,1752834643031,-349.796379,0.00023792,7]
[372988595,1752834643041,-349.796379,0.00023792,7]
[372988596,1752834643052,-207.4,0.00023792,2]
[372988598,1752834643061,-151.0,0.00023792,2]
[372988599,1752834643070,-151.0,0.00023792,2]
[372988601,1752834643080,-184.17851102,0.00023792,2]
[372988603,1752834643089,-151.0,0.00023792,2]
[372988605,1752834643099,-151.0,0.00023792,2]
[372988608,1752834643118,-151.0,0.00023792,2]
[372988610,1752834643129,-151.0,0.00023792,2]
[372988612,1752834643139,-3801.642,0.00023792,2]
[372988614,1752834643149,-151.0,0.00023792,2]
[372988616,1752834643159,-151.0,0.00023792,2]
[372988618,1752834643169,-151.0,0.00023792,2]
[372988620,1752834643178,-151.0,0.00023792,2]
[372988622,1752834643188,-151.0,0.00023792,2]
[372988624,1752834643198,-151.0,0.00023792,2]
[372988625,1752834643208,-151.0,0.00023792,2]
[372988626,1752834643217,-151.0,0.00023792,2]
[372988627,1752834643227,-151.0,0.00023792,2]
[372988628,1752834643237,-151.0,0.00023792,2]
[372988629,1752834643248,-151.0,0.00023792,2]
[372988630,1752834643261,-151.0,0.00023792,2]
[372988631,1752834643270,-151.0,0.00023792,2]
[372988632,1752834643280,-151.0,0.00023792,2]
[372988633,1752834643291,-151.0,0.00023792,2]
[372988634,1752834643302,-151.0,0.00023792,2]
[372988635,1752834643312,-151.0,0.00023792,2]
[372988636,1752834643322,-151.0,0.00023792,2]
[372988637,1752834643332,-151.0,0.00023792,2]
[372988638,1752834643342,-159.14388846,0.00023792,2]
[372988639,1752834643352,-151.0,0.00023792,2]
[372988640,1752834643362,-151.0,0.00023792,2]
[372988641,1752834643372,-151.0,0.00023792,2]
[372988642,1752834643382,-151.0,0.00023792,2]
[372988643,1752834643392,-151.0,0.00023792,2]
[372988644,1752834643401,-151.0,0.00023792,2]
[372988645,1752834643411,-151.0,0.00023792,2]
[372988646,1752834643421,-151.0,0.00023792,2]
[372988647,1752834643431,-151.0,0.00023792,2]
[372988648,1752834643441,-151.0,0.00023792,2]
[372988649,1752834643451,-151.0,0.00023792,2]
[372988650,1752834643460,-25000.0,0.00023792,2]
[372988651,1752834643470,-2196.83371422,0.00023792,2]
[372988652,1752834643480,-9850.44153756,0.000238,2]
[372988653,1752834643491,-230.89969799,0.000238,3]
[372988654,1752834643500,-160.0,0.000238,3]
[372988655,1752834643510,-525.75194068,0.000238,3]
[372988656,1752834643520,-160.0,0.000238,3]
[372988657,1752834643530,-200.0,0.00023807,2]